fUST/lending_fUST_20240306
["ID","MTS","AMOUNT","RATE_DAILY","PERIOD"]
[316968888,1709658644428,-500.0,0.00023287,2]
[316968889,1709658644439,-500.0,0.00023287,2]
[316968890,1709658644450,-500.0,0.00023287,2]
[316968891,1709658644460,-500.0,0.00023287,2]
[316968892,1709658644470,-500.0,0.00023287,2]
[316968894,1709658644480,-500.0,0.00023287,2]
[316968897,1709658644490,-500.0,0.00023287,2]
[316968900,1709658644500,-500.0,0.00023287,2]
[316968902,1709658644510,-500.0,0.00023287,2]
[316968903,1709658644520,-500.0,0.00023287,2]
[316968905,1709658644530,-500.0,0.00023287,2]
[316968907,1709658644540,-500.0,0.00023287,2]
[316968910,1709658644550,-500.0,0.00023287,2]
[316968913,1709658644565,-500.0,0.00023287,2]
[316968914,1709658644574,-500.0,0.00023287,2]
[316968916,1709658644583,-500.0,0.00023287,2]
[316968918,1709658644594,-500.0,0.00023287,2]
[316968920,1709658644603,-160.81831443,0.00023287,2]
[316968922,1709658644614,-500.0,0.00023287,2]
[316968924,1709658644624,-500.0,0.00023287,2]
[316968926,1709658644633,-500.0,0.00023287,2]
[316968928,1709658644642,-500.0,0.00023287,2]
[316968930,1709658644653,-500.0,0.00023287,2]
[316968938,1709658644720,-500.56269306,0.00023287,2]
[316968939,1709658644731,-500.0,0.00023287,2]
[316968942,1709658644741,-500.0,0.00023287,2]
[316968944,1709658644751,-500.0,0.00023287,2]
[316968946,1709658644796,-500.0,0.00023287,2]
[316968947,1709658644810,-500.0,0.00023287,2]
[316968949,1709658644820,-220.16,0.00023287,2]
[316968952,1709658644830,-500.0,0.00023287,2]
[316968953,1709658644840,-155.73442212,0.00023287,2]
[316968955,1709658644850,-500.0,0.00023287,2]
[316968958,1709658644860,-501.84122316,0.00023342,2]
[316968960,1709658644869,-325.61764758,0.00023365,2]
[316968962,1709658644879,-530.256899,0.00023452,2]
[316968963,1709658644888,-361.63,0.000235,2]
[316968965,1709658644898,-325.61764758,0.00023544,2]
[316968968,1709658644908,-1000.0,0.0002363,2]
[316968970,1709658644918,-1000.0,0.00023637,2]
[316968972,1709658644927,-2655.1657,0.00023647,30]
[316968973,1709658644937,-1000.0,0.00023649,2]
[316968976,1709658644946,-1000.0,0.00023655,2]
[316968977,1709658644955,-1000.0,0.00023694,2]
[316968979,1709658644964,-1000.0,0.000237,2]
[316968981,1709658644974,-1000.0,0.00023708,2]
[316968983,1709658644983,-1000.0,0.00023709,2]
[316968985,1709658644992,-1000.0,0.0002371,2]
[316968987,1709658645002,-1000.0,0.00023711,2]
[316968989,1709658645012,-325.61764758,0.00023722,2]
[316968991,1709658645021,-170.36932603,0.0002376,2]
[316968993,1709658645030,-1000.0,0.00023767,2]
[316968995,1709658645040,-1000.0,0.00023768,2]
[316968997,1709658645049,-1000.0,0.00023768,2]
[316968999,1709658645066,-1000.0,0.00023788,2]
[316969001,1709658645075,-1000.0,0.00023791,2]
[316969003,1709658645084,-725.79,0.00023799,2]
[316969005,1709658645093,-500.0,0.00023799,2]
[316969007,1709658645102,-590.67,0.00023799,2]
[316969009,1709658645115,-500.0,0.00023799,2]
[316969011,1709658645125,-500.0,0.00023799,2]
[316969013,1709658645134,-500.0,0.00023799,2]
[316969015,1709658645144,-500.0,0.00023799,2]
[316969017,1709658645153,-500.0,0.00023799,2]
[316969019,1709658645163,-500.0,0.00023799,2]
[316969021,1709658645173,-500.0,0.00023799,2]
[316969023,1709658645182,-7974.76237535,0.000238,7]
[316969025,1709658645191,-4750.39457772,0.000238,2]
[316969027,1709658645200,-56666.19094364,0.000238,2]
[316969029,1709658645209,-1000.0,0.00023805,2]
[316969031,1709658645221,-1000.0,0.00023825,2]
[316969033,1709658645232,-1090.78464363,0.00023861,2]
[316969035,1709658645242,-1000.0,0.00023863,2]
[316969037,1709658645251,-1000.0,0.00023864,2]
[316969039,1709658645263,-1000.0,0.00023868,7]
[316969041,1709658645273,-1000.0,0.00023876,2]
[316969043,1709658645284,-1000.0,0.00023886,2]
[316969045,1709658645294,-153.0,0.00023888,2]
[316969047,1709658645308,-153.0,0.00023888,2]
[316969049,1709658645318,-153.0,0.00023888,2]
[316969051,1709658645330,-153.0,0.00023888,2]
[316969052,1709658645341,-153.0,0.00023888,2]
[316969054,1709658645351,-153.0,0.00023888,2]
[316969056,1709658645362,-153.0,0.00023888,2]
[316969058,1709658645373,-153.0,0.00023888,2]
[316969060,1709658645383,-153.0,0.00023888,2]
[316969062,1709658645394,-153.0,0.00023888,2]
[316969064,1709658645403,-191.207792,0.00023889,2]
[316969066,1709658645412,-153.0,0.00023889,2]
[316969068,1709658645422,-153.0,0.00023889,2]
[316969070,1709658645432,-153.0,0.00023889,2]
[316969072,1709658645447,-153.0,0.00023889,2]
[316969074,1709658645456,-153.0,0.00023889,2]
[316969076,1709658645466,-153.0,0.00023889,2]
[316969078,1709658645475,-153.0,0.00023889,2]
[316969080,1709658645484,-153.0,0.00023889,2]
[316969082,1709658645493,-725.79,0.00023895,2]
[316969084,1709658645502,-500.0,0.00023895,2]
[316969086,1709658645512,-590.67,0.00023895,2]
[316969096,1709658645596,-511.35966868,0.00023895,2]
[316969098,1709658645606,-500.0,0.00023895,2]
[316969100,1709658645615,-500.0,0.00023895,2]
[316969102,1709658645624,-500.0,0.00023895,2]
[316969104,1709658645634,-500.0,0.00023895,2]
[316969106,1709658645644,-500.0,0.00023895,2]
[316969108,1709658645654,-500.0,0.00023896,2]
[316969110,1709658645664,-256.23048049,0.00023897,2]
[316969112,1709658645673,-500.0,0.00023898,2]
[316969114,1709658645682,-500.0,0.00023898,2]
[316969116,1709658645691,-500.0,0.00023898,2]
[316969118,1709658645700,-500.0,0.00023899,2]
[316969120,1709658645709,-500.0,0.00023899,2]
[316969122,1709658645719,-500.0,0.00023899,2]
[316969124,1709658645728,-500.0,0.00023899,2]
[316969126,1709658645738,-500.0,0.00023899,2]
[316969129,1709658645748,-500.0,0.00023899,2]
[316969131,1709658645759,-533.49744535,0.00023899,2]
[316969133,1709658645769,-500.0,0.00023899,2]
[316969134,1709658645779,-500.0,0.00023899,2]
[316969136,1709658645789,-500.0,0.00023899,2]
[316969138,1709658645799,-604.68327078,0.00023899,2]
[316969139,1709658645815,-603.3,0.00023899,2]
[316969141,1709658645825,-1000.0,0.00023899,2]
[316969143,1709658645836,-523.08204882,0.000239,3]
[316969145,1709658645847,-2290.24155685,0.000239,2]
[316969146,1709658645857,-2290.24155685,0.000239,2]
[316969148,1709658645867,-2290.24155685,0.000239,2]
[316969150,1709658645876,-2290.24155685,0.000239,2]
[316969153,1709658645886,-2290.24155685,0.000239,2]
[316969156,1709658645897,-2290.24155685,0.000239,2]
[316969159,1709658645907,-2290.24155685,0.000239,2]
[316969161,1709658645916,-2290.24155685,0.000239,2]
[316969164,1709658645925,-2290.24155685,0.000239,2]
[316969166,1709658645936,-2290.24155685,0.000239,2]
[316969168,1709658645946,-2290.24155685,0.000239,2]
[316969170,1709658645956,-2290.24155685,0.000239,2]
[316969171,1709658645972,-2290.24155685,0.000239,2]
[316969173,1709658645982,-2290.24155685,0.000239,2]
[316969175,1709658645992,-2290.24155685,0.000239,2]
[316969176,1709658646003,-2290.24155685,0.000239,2]
[316969178,1709658646013,-2290.24155685,0.000239,2]
[316969180,1709658646023,-2290.24155685,0.000239,2]
[316969182,1709658646033,-2290.24155685,0.000239,2]
[316969183,1709658646044,-2290.24,0.000239,2]
[316969185,1709658646057,-9160.9662274,0.000239,2]
[316969187,1709658646072,-9160.9662274,0.000239,2]
[316969188,1709658646081,-9160.9662274,0.000239,2]
[316969190,1709658646090,-9160.9662274,0.000239,2]
[316969192,1709658646100,-9160.9662274,0.000239,2]
[316969194,1709658646112,-9160.9662274,0.000239,2]
[316969195,1709658646121,-9160.9662274,0.000239,2]
[316969197,1709658646130,-9160.9662274,0.000239,2]
[316969199,1709658646141,-9160.9662274,0.000239,2]
[316969201,1709658646153,-9160.9662274,0.000239,2]
[316969202,1709658646163,-9160.9662274,0.000239,2]
[316969204,1709658646173,-9160.9662274,0.000239,2]
[316969206,1709658646182,-9160.9662274,0.000239,2]
[316969207,1709658646191,-9160.9662274,0.000239,2]
[316969209,1709658646201,-9160.9662274,0.000239,2]
[316969211,1709658646211,-9160.9662274,0.000239,2]
[316969213,1709658646221,-9160.9662274,0.000239,2]
[316969214,1709658646230,-9160.9662274,0.000239,2]
[316969216,1709658646241,-9160.9662274,0.000239,2]
[316969218,1709658646252,-9160.96,0.000239,2]
[316969220,1709658646263,-157.90932338,0.000239,2]
[316969221,1709658646274,-157.9,0.000239,2]
[316969223,1709658646285,-325.61764758,0.000239,2]
[316969225,1709658646295,-3007.61024138,0.00023911,2]
[316969227,1709658646311,-170.083727,0.00023912,2]
[316969229,1709658646322,-2929.85172541,0.00023968,6]
[316969230,1709658646332,-416.1748218,0.00023998,2]
[316969232,1709658646343,-155.15515516,0.00023998,2]
[316969234,1709658646352,-181.57720911,0.00023998,2]
[316969236,1709658646362,-3163.86590846,0.00023998,2]
[316969238,1709658646371,-2112.65250329,0.00023998,2]
[316969239,1709658646381,-194.01432921,0.00023998,2]
[316969241,1709658646391,-271.68,0.00023998,2]
[316969243,1709658646400,-155.10236756,0.00023998,2]
[316969245,1709658646410,-697.62908793,0.00023998,2]
[316969246,1709658646420,-500.0,0.00023999,2]
[316969248,1709658646429,-500.0,0.00023999,2]
[316969250,1709658646439,-500.0,0.00023999,2]
[316969252,1709658646448,-500.0,0.00023999,2]
[316969253,1709658646458,-500.0,0.00023999,2]
[316969255,1709658646469,-500.0,0.00023999,2]
[316969257,1709658646479,-500.0,0.00023999,2]
[316969259,1709658646488,-500.0,0.00023999,2]
[316969260,1709658646497,-414.96810622,0.00023999,2]
[316969262,1709658646507,-725.79,0.00023999,2]
[316969264,1709658646517,-725.79,0.00023999,2]
[316969266,1709658646528,-725.79,0.00023999,2]
[316969268,1709658646537,-725.79,0.00023999,2]
[316969269,1709658646548,-725.79,0.00023999,2]
[316969271,1709658646562,-725.79,0.00023999,2]
[316969273,1709658646572,-725.79,0.00023999,2]
[316969275,1709658646581,-725.79,0.00023999,2]
[316969276,1709658646591,-725.79,0.00023999,2]
[316969278,1709658646600,-725.79,0.00023999,2]
[316969280,1709658646610,-725.79,0.00023999,2]
[316969282,1709658646619,-725.79,0.00023999,2]
[316969284,1709658646628,-725.79,0.00023999,2]
[316969285,1709658646638,-725.96883603,0.00023999,2]
[316969287,1709658646647,-500.0,0.00023999,2]
[316969289,1709658646656,-599.2191735,0.00023999,2]
[316969291,1709658646665,-590.67,0.00023999,2]
[316969292,1709658646674,-590.67,0.00023999,2]
[316969294,1709658646683,-590.67,0.00023999,2]
[316969297,1709658646692,-590.67,0.00023999,2]
[316969299,1709658646701,-590.67,0.00023999,2]
[316969300,1709658646711,-590.67,0.00023999,2]
[316969302,1709658646721,-590.67,0.00023999,2]
[316969304,1709658646731,-590.67,0.00023999,2]
[316969306,1709658646740,-590.67,0.00023999,2]
[316969307,1709658646749,-590.67,0.00023999,2]
[316969309,1709658646758,-590.67,0.00023999,2]
[316969311,1709658646768,-590.67,0.00023999,2]
[316969313,1709658646777,-590.67,0.00023999,2]
[316969314,1709658646786,-590.71,0.00023999,2]
[316969316,1709658646796,-500.0,0.00023999,2]
[316969318,1709658646809,-500.0,0.00023999,2]
[316969320,1709658646818,-500.0,0.00023999,2]
[316969322,1709658646827,-500.0,0.00023999,2]
[316969323,1709658646836,-500.0,0.00023999,2]
[316969325,1709658646845,-500.0,0.00023999,2]
[316969327,1709658646855,-500.0,0.00023999,2]
[316969329,1709658646864,-576.23,0.00023999,2]
[316969331,1709658646873,-500.0,0.00023999,2]
[316969332,1709658646882,-500.0,0.00023999,2]
[316969334,1709658646891,-506.51747823,0.00023999,2]
[316969336,1709658646901,-500.0,0.00023999,2]
[316969337,1709658646910,-500.0,0.00023999,2]
[316969339,1709658646919,-500.0,0.00023999,2]
[316969341,1709658646928,-500.0,0.00023999,2]
[316969343,1709658646938,-500.0,0.00023999,2]
[316969345,1709658646947,-404.63527527,0.00023999,2]
[316969346,1709658646956,-500.0,0.00023999,2]
[316969348,1709658646966,-500.0,0.00023999,2]
[316969350,1709658646976,-500.0,0.00023999,2]
[316969352,1709658646986,-199.18779756,0.00023999,2]
[316969353,1709658646995,-500.0,0.00023999,2]
[316969355,1709658647005,-500.0,0.00023999,2]
[316969357,1709658647015,-500.0,0.00023999,2]
[316969359,1709658647024,-421.59989349,0.00023999,2]
[316969360,1709658647033,-1054621.19903795,0.00024,5]
[316969366,1709658647096,-582.70334049,0.00024,5]
[316969368,1709658647111,-7307.4,0.00024,5]
[316969379,1709658647230,-846.98175724,0.00024,5]
[316969381,1709658647242,-4486.57691368,0.00024,5]
[316969383,1709658647253,-441.31049817,0.00024,5]
[316969385,1709658647264,-3383.3894518,0.00024,5]
[316969387,1709658647276,-22767.46130071,0.00024,5]
[316969388,1709658647286,-617639.11098616,0.00024,5]
[316969390,1709658647297,-618.09,0.00024,5]
[316969392,1709658647313,-3682.2,0.00024,5]
[316969618,1709658650034,-500.0,0.00022886,2]
[316969620,1709658650045,-500.0,0.00022886,2]
[316969622,1709658650055,-500.0,0.00022886,2]
[316969624,1709658650074,-464.199998,0.00022886,2]
[316969627,1709658650086,-35.800002,0.00022886,2]
[316969628,1709658650097,-500.0,0.00022886,2]
[316969630,1709658650109,-449.199999,0.00022886,2]
[316969633,1709658650122,-50.800001,0.00022886,2]
[316969634,1709658650131,-500.0,0.00022886,2]
[316969637,1709658650144,-409.16272625,0.00022886,2]
[316969638,1709658650156,-500.0,0.00022886,2]
[316969640,1709658650166,-500.0,0.00022886,2]
[316969642,1709658650176,-500.0,0.00022886,2]
[316969644,1709658650185,-500.0,0.00022886,2]
[316969646,1709658650197,-500.0,0.00022886,2]
[316969648,1709658650207,-500.0,0.00022886,2]
[316969650,1709658650218,-188.75309189,0.00022886,2]
[316969652,1709658650228,-500.0,0.00022886,2]
[316969654,1709658650238,-500.0,0.00022886,2]
[316969656,1709658650248,-500.0,0.00022886,2]
[316969658,1709658650258,-500.0,0.00022886,2]
[316969660,1709658650268,-500.0,0.00022886,2]
[316969663,1709658650278,-160.22997542,0.00022886,2]
[316969664,1709658650287,-500.0,0.00022886,2]
[316969666,1709658650296,-500.0,0.00022886,2]
[316969668,1709658650308,-500.0,0.00022886,2]
[316969670,1709658650323,-500.0,0.00022886,2]
[316969672,1709658650333,-500.0,0.00022886,2]
[316969674,1709658650343,-208.09055956,0.00022886,2]
[316969676,1709658650354,-500.0,0.00022886,2]
[316969678,1709658650365,-500.0,0.00022886,2]
[316969680,1709658650377,-500.0,0.00022886,2]
[316969682,1709658650388,-500.0,0.00022886,2]
[316969684,1709658650399,-500.0,0.00022886,2]
[316969686,1709658650410,-500.0,0.00022886,2]
[316969688,1709658650420,-500.0,0.00022886,2]
[316969690,1709658650431,-500.0,0.00022886,2]
[316969692,1709658650447,-500.0,0.00022886,2]
[316969701,1709658650537,-500.0,0.00022886,2]
[316969704,1709658650552,-500.0,0.00022886,2]
[316969705,1709658650572,-500.0,0.00022886,2]
[316969708,1709658650584,-500.0,0.00022886,2]
[316969710,1709658650596,-500.0,0.00022886,2]
[316969712,1709658650607,-500.0,0.00022886,2]
[316969714,1709658650618,-555.34393984,0.00022886,2]
[316969716,1709658650630,-500.0,0.00022886,2]
[316969718,1709658650641,-500.0,0.00022886,2]
[316969720,1709658650651,-500.0,0.00022886,2]
[316969722,1709658650686,-500.0,0.00022886,2]
[316969724,1709658650698,-500.0,0.00022886,2]
[316969726,1709658650709,-500.0,0.00022886,2]
[316969728,1709658650723,-500.0,0.00022886,2]
[316969730,1709658650734,-500.0,0.00022886,2]
[316969732,1709658650746,-500.0,0.00022886,2]
[316969734,1709658650757,-500.0,0.00022886,2]
[316969736,1709658650768,-500.0,0.00022886,2]
[316969738,1709658650779,-500.0,0.00022886,2]
[316969740,1709658650790,-500.0,0.00022886,2]
[316969741,1709658650801,-165.90850712,0.00022886,2]
[316969743,1709658650819,-422.2850503,0.00023287,2]
[316969745,1709658650829,-170.36932604,0.0002376,2]
[316969748,1709658650840,-176.31919157,0.00023998,2]
[316969750,1709658650851,-1880.71104706,0.00023999,2]
[316969751,1709658650860,-140446.6027876,0.00024,5]
[316969754,1709658650874,-14186.11904697,0.00024,5]
[316969756,1709658650886,-791.45460201,0.00024,5]
[316974010,1709659558518,1900.0,0.000201,10]
[316974011,1709659564874,312.66051478,0.000189,2]
[316974316,1709659839379,-155.02325349,0.00020619,2]
[316974317,1709659839389,-1880.71104706,0.00020619,2]
[316974318,1709659839398,-528.19565968,0.0002062,2]
[316974319,1709659839407,-2113.35902263,0.00020621,2]
[316974320,1709659839416,-14504.93909935,0.00020623,2]
[316974321,1709659839428,-739.84578393,0.00020623,2]
[316974322,1709659839439,-246.367993,0.00020627,2]
[316974323,1709659839448,-570.25011926,0.00020812,2]
[316974324,1709659839459,-21225.67726624,0.00020812,2]
[316974325,1709659839468,-250.0,0.00021003,2]
[316974326,1709659839483,-173.901981,0.0002105,2]
[316974327,1709659839492,-2300.0,0.00021199,2]
[316974328,1709659839501,-186.33932523,0.00021437,2]
[316974329,1709659839510,-167.973755,0.0002173,2]
[316974330,1709659839519,-173.0,0.00022,2]
[316974331,1709659839528,-612.78790057,0.00022,2]
[316974332,1709659839537,-1667.68500194,0.00022,2]
[316974333,1709659839547,-875.09853826,0.00022191,2]
[316974334,1709659839557,-173.0,0.00022192,2]
[316974335,1709659839565,-511.21858938,0.00022853,2]
[316974336,1709659839574,-689.26650212,0.00022853,2]
[316974337,1709659839584,-656.41051363,0.00022855,3]
[316974338,1709659839593,-14157.15645863,0.00022855,3]
[316974339,1709659839602,-150.5,0.00022855,2]
[316974340,1709659839611,-417.39913603,0.00022855,3]
[316974341,1709659839620,-178.88534401,0.00022855,3]
[316974342,1709659839629,-4404.49299867,0.00022855,2]
[316974343,1709659839638,-3967.85326262,0.00023,2]
[316974344,1709659839647,-155.0,0.00023,2]
[316974345,1709659839656,-173.0,0.00023014,2]
[316974346,1709659839665,-214.76,0.00023144,3]
[316974347,1709659839674,-500.0,0.00023153,2]
[316974348,1709659839683,-500.0,0.00023153,2]
[316974349,1709659839692,-182.4934655,0.00023153,2]
[316974350,1709659839701,-500.0,0.00023153,2]
[316974351,1709659839711,-500.0,0.00023153,2]
[316974352,1709659839720,-500.0,0.00023153,2]
[316974353,1709659839733,-500.0,0.00023153,2]
[316974354,1709659839742,-500.0,0.00023153,2]
[316974355,1709659839752,-165.70046398,0.00023153,2]
[316974356,1709659839761,-500.0,0.00023153,2]
[316974357,1709659839770,-500.0,0.00023153,2]
[316974358,1709659839780,-298.09088161,0.00023153,2]
[316974359,1709659839789,-500.0,0.00023153,2]
[316974360,1709659839798,-449.94056573,0.00023153,2]
[316974361,1709659839807,-185.42027159,0.00023153,2]
[316974362,1709659839816,-500.0,0.00023153,2]
[316974363,1709659839824,-500.0,0.00023153,2]
[316974364,1709659839833,-500.0,0.00023153,2]
[316974365,1709659839842,-500.0,0.00023153,2]
[316974366,1709659839851,-500.0,0.00023153,2]
[316974367,1709659839860,-524.35472984,0.00023153,2]
[316974368,1709659839869,-626.03439398,0.00023153,2]
[316974369,1709659839878,-500.0,0.00023153,2]
[316974370,1709659839887,-228.85957553,0.00023153,2]
[316974371,1709659839896,-500.0,0.00023153,2]
[316974372,1709659839904,-40199.26421426,0.00023154,3]
[316974373,1709659839913,-5000.0,0.00023155,7]
[316974374,1709659839922,-12704.27471995,0.00023156,5]
[316974375,1709659839932,-178.99629838,0.00023156,3]
[316974376,1709659839941,-542.09247803,0.00023156,3]
[316974377,1709659839950,-17409.98683887,0.00023156,5]
[316974378,1709659839959,-292.1437862,0.00023203,2]
[316974379,1709659839968,-153.2409128,0.00023203,2]
[316974380,1709659839979,-153.2147094,0.00023203,2]
[316974381,1709659839988,-153.0,0.00023203,2]
[316974382,1709659839997,-153.0,0.00023203,2]
[316974383,1709659840006,-153.0,0.00023203,2]
[316974384,1709659840016,-153.0,0.00023203,2]
[316974385,1709659840026,-153.0,0.00023203,2]
[316974386,1709659840035,-153.0,0.00023203,2]
[316974388,1709659840128,-153.0,0.00023203,2]
[316974389,1709659840138,-153.0,0.00023203,2]
[316974390,1709659840147,-153.0,0.00023203,2]
[316974391,1709659840157,-153.0,0.00023203,2]
[316974392,1709659840166,-153.0,0.00023203,2]
[316974393,1709659840175,-153.0,0.00023203,2]
[316974394,1709659840185,-315.4894416,0.00023204,2]
[316974395,1709659840195,-279.5697866,0.00023204,2]
[316974396,1709659840204,-1521.38532789,0.00023286,2]
[316974397,1709659840214,-500.0,0.00023287,2]
[316974398,1709659840223,-500.0,0.00023287,2]
[316974399,1709659840233,-608.08059607,0.00023287,2]
[316974400,1709659840243,-500.0,0.00023287,2]
[316974401,1709659840252,-500.0,0.00023287,2]
[316974403,1709659840261,-500.0,0.00023287,2]
[316974405,1709659840270,-500.0,0.00023287,2]
[316974407,1709659840279,-500.0,0.00023287,2]
[316974409,1709659840288,-500.0,0.00023287,2]
[316974411,1709659840297,-500.0,0.00023287,2]
[316974412,1709659840306,-1108.32,0.00023287,2]
[316974413,1709659840315,-1108.32,0.00023287,2]
[316974414,1709659840324,-1108.32,0.00023287,2]
[316974415,1709659840333,-1108.32,0.00023287,2]
[316974416,1709659840342,-1108.32,0.00023287,2]
[316974417,1709659840351,-1108.32,0.00023287,2]
[316974418,1709659840360,-1108.32,0.00023287,2]
[316974420,1709659840370,-1108.32,0.00023287,2]
[316974422,1709659840379,-1108.32,0.00023287,2]
[316974423,1709659840387,-1108.32,0.00023287,2]
[316974424,1709659840400,-608.16,0.00023287,2]
[316974425,1709659840409,-608.16,0.00023287,2]
[316974426,1709659840418,-608.16,0.00023287,2]
[316974427,1709659840427,-608.16,0.00023287,2]
[316974428,1709659840440,-608.16,0.00023287,2]
[316974429,1709659840450,-608.16,0.00023287,2]
[316974430,1709659840459,-608.16,0.00023287,2]
[316974431,1709659840468,-608.16,0.00023287,2]
[316974432,1709659840481,-608.16,0.00023287,2]
[316974433,1709659840489,-608.16,0.00023287,2]
[316974434,1709659840498,-500.0,0.00023287,2]
[316974435,1709659840508,-599.2191735,0.00023287,2]
[316974436,1709659840519,-500.0,0.00023287,2]
[316974437,1709659840529,-500.0,0.00023287,2]
[316974438,1709659840538,-500.0,0.00023287,2]
[316974439,1709659840547,-500.0,0.00023287,2]
[316974440,1709659840556,-500.0,0.00023287,2]
[316974442,1709659840568,-500.0,0.00023287,2]
[316974444,1709659840577,-320.14171251,0.00023287,2]
[316974446,1709659840587,-500.0,0.00023287,2]
[316974448,1709659840595,-500.0,0.00023287,2]
[316974449,1709659840604,-500.0,0.00023287,2]
[316974451,1709659840614,-500.0,0.00023287,2]
[316974453,1709659840623,-500.0,0.00023287,2]
[316974455,1709659840632,-500.0,0.00023287,2]
[316974457,1709659840641,-500.0,0.00023287,2]
[316974459,1709659840650,-500.0,0.00023287,2]
[316974461,1709659840658,-500.0,0.00023287,2]
[316974463,1709659840667,-234.74885017,0.00023287,2]
[316974465,1709659840677,-500.0,0.00023287,2]
[316974467,1709659840686,-500.0,0.00023287,2]
[316974468,1709659840695,-500.0,0.00023287,2]
[316974469,1709659840705,-500.0,0.00023287,2]
[316974470,1709659840714,-500.0,0.00023287,2]
[316974471,1709659840723,-500.0,0.00023287,2]
[316974472,1709659840735,-500.0,0.00023287,2]
[316974473,1709659840744,-500.0,0.00023287,2]
[316974474,1709659840754,-500.0,0.00023287,2]
[316974475,1709659840763,-500.0,0.00023287,2]
[316974476,1709659840772,-500.0,0.00023287,2]
[316974477,1709659840781,-500.0,0.00023287,2]
[316974478,1709659840790,-500.0,0.00023287,2]
[316974479,1709659840799,-500.0,0.00023287,2]
[316974480,1709659840809,-500.0,0.00023287,2]
[316974481,1709659840818,-500.0,0.00023287,2]
[316974482,1709659840828,-500.0,0.00023287,2]
[316974483,1709659840837,-500.0,0.00023287,2]
[316974484,1709659840846,-634.52460171,0.00023287,2]
[316974485,1709659840856,-500.0,0.00023287,2]
[316974486,1709659840865,-500.0,0.00023287,2]
[316974487,1709659840874,-500.0,0.00023287,2]
[316974488,1709659840883,-242.76908298,0.00023287,2]
[316974489,1709659840893,-500.0,0.00023287,2]
[316974491,1709659840902,-500.0,0.00023287,2]
[316974493,1709659840912,-500.0,0.00023287,2]
[316974494,1709659840922,-500.0,0.00023287,2]
[316974496,1709659840932,-500.0,0.00023287,2]
[316974498,1709659840941,-500.0,0.00023287,2]
[316974499,1709659840951,-500.0,0.00023287,2]
[316974500,1709659840962,-447.96075002,0.00023287,2]
[316974501,1709659840972,-500.0,0.00023287,2]
[316974502,1709659840986,-500.0,0.00023287,2]
[316974503,1709659840997,-500.0,0.00023287,2]
[316974504,1709659841009,-500.0,0.00023287,2]
[316974505,1709659841020,-500.0,0.00023287,2]
[316974506,1709659841031,-500.0,0.00023287,2]
[316974507,1709659841042,-500.0,0.00023287,2]
[316974508,1709659841053,-209.77123599,0.00023287,2]
[316974509,1709659841064,-500.0,0.00023287,2]
[316974510,1709659841074,-500.0,0.00023287,2]
[316974511,1709659841084,-500.0,0.00023287,2]
[316974512,1709659841094,-500.0,0.00023287,2]
[316974513,1709659841103,-500.0,0.00023287,2]
[316974514,1709659841113,-500.0,0.00023287,2]
[316974515,1709659841122,-500.0,0.00023287,2]
[316974516,1709659841132,-215.75588469,0.00023287,2]
[316974517,1709659841141,-500.0,0.00023287,2]
[316974518,1709659841151,-500.0,0.00023287,2]